fUSD/lending_fUSD_20260219
["ID","MTS","AMOUNT","RATE_DAILY","PERIOD"]
[405985011,1771498231613,-20963.32687348,6.7e-05,2]
[405985012,1771498231623,-24209.44207393,6.7e-05,2]
[405985013,1771498231635,-34902.52744013,6.7e-05,2]
[405985014,1771498231645,-36048.21515793,6.7e-05,2]
[405985015,1771498231654,-787.44689358,6.8e-05,2]
[405985016,1771498231696,-2934.8947086,6.8e-05,2]
[405985017,1771498231707,-3861.14688102,6.8e-05,2]
[405985018,1771498231717,-1259.16,6.87e-05,2]
[405985019,1771498231726,-447.0,6.901e-05,2]
[405985020,1771498231735,-6978.72481484,6.904e-05,2]
[405985022,1771498231746,-19846.66518516,6.904e-05,2]
[405985024,1771498231756,-239.0,6.956e-05,2]
[405985026,1771498231765,-831.47,6.99e-05,2]
[405985028,1771498231774,-448.0,7.027e-05,2]
[405985030,1771498231784,-200.0,7.034e-05,2]
[405985032,1771498231793,-2511.41360514,7.036e-05,2]
[405985035,1771498231804,-1228.70968045,7.036e-05,2]
[405985047,1771498237577,-7043.0,7.036e-05,2]
[405985088,1771498239613,-8421.80671441,7.036e-05,2]
[405985090,1771498239622,-152.677367,7.041e-05,2]
[405985091,1771498239633,-150.0,7.061e-05,2]
[405985092,1771498239643,-151.0,7.099e-05,2]
[405985093,1771498239653,-1500.0,7.102e-05,2]
[405985094,1771498239663,-1000.0,7.131e-05,2]
[405985095,1771498239673,-499.08,7.178e-05,2]
[405985096,1771498239683,-193.0,7.222e-05,2]
[405985097,1771498239693,-250.0,7.222e-05,2]
[405985098,1771498239703,-250.0,7.222e-05,2]
[405985099,1771498239713,-193.0,7.222e-05,2]
[405985100,1771498239722,-193.0,7.222e-05,2]
[405985101,1771498239733,-47249.65,7.226e-05,2]
[405985102,1771498239745,-250.0,7.293e-05,2]
[405985103,1771498239755,-420.0,7.368e-05,2]
[405985104,1771498239765,-1680.0,7.368e-05,2]
[405985105,1771498239774,-255.0,7.369e-05,2]
[405985106,1771498239783,-1545.8998,7.37e-05,2]
[405985107,1771498239793,-2745.0,7.397e-05,2]
[405985108,1771498239802,-500.0,7.398e-05,2]
[405985109,1771498239811,-500.0,7.398e-05,2]
[405985110,1771498239820,-500.0,7.398e-05,2]
[405985111,1771498239829,-500.0,7.398e-05,2]
[405985112,1771498239838,-578.20924308,7.398e-05,2]
[405985113,1771498239848,-500.0,7.398e-05,2]
[405985114,1771498239860,-500.0,7.398e-05,2]
[405985115,1771498239880,-500.0,7.398e-05,2]
[405985116,1771498239901,-500.0,7.398e-05,2]
[405985117,1771498239918,-154.57694927,7.398e-05,2]
[405985118,1771498239928,-181.08010149,7.398e-05,2]
[405985119,1771498239941,-174.61919141,7.398e-05,2]
[405985120,1771498239951,-250.0,7.398e-05,2]
[405985121,1771498239960,-209.40437684,7.398e-05,2]
[405985122,1771498239970,-250.0,7.398e-05,2]
[405985123,1771498239982,-250.0,7.398e-05,2]
[405985124,1771498239995,-250.0,7.398e-05,2]
[405985125,1771498240008,-250.0,7.398e-05,2]
[405985126,1771498240019,-387.71279314,7.398e-05,2]
[405985127,1771498240028,-151.0,7.398e-05,2]
[405985128,1771498240038,-721.12765535,7.398e-05,2]
[405985129,1771498240047,-500.0,7.398e-05,2]
[405985130,1771498240057,-250.0,7.398e-05,2]
[405985131,1771498240067,-250.0,7.398e-05,2]
[405985132,1771498240078,-250.0,7.398e-05,2]
[405985133,1771498240091,-250.0,7.398e-05,2]
[405985134,1771498240100,-250.0,7.398e-05,2]
[405985135,1771498240110,-250.0,7.398e-05,2]
[405985136,1771498240120,-250.0,7.398e-05,2]
[405985137,1771498240129,-250.0,7.398e-05,2]
[405985138,1771498240139,-250.0,7.398e-05,2]
[405985139,1771498240151,-250.0,7.398e-05,2]
[405985140,1771498240161,-250.0,7.398e-05,2]
[405985141,1771498240170,-277.35679052,7.398e-05,2]
[405985142,1771498240410,-693.3919763,7.398e-05,2]
[405985143,1771498240422,-162.380719,7.398e-05,2]
[405985144,1771498240431,-151.0,7.453e-05,2]
[405985145,1771498240440,-719.04747942,7.453e-05,2]
[405985146,1771498240450,-202.71,7.491e-05,2]
[405985147,1771498240459,-151.0,7.508e-05,2]
[405985148,1771498240468,-745.65223616,7.508e-05,2]
[405985149,1771498240478,-151.0,7.563e-05,2]
[405985150,1771498240487,-773.2413689,7.563e-05,2]
[405985151,1771498240496,-7583.4884832,7.611e-05,2]
[405985152,1771498240506,-233.11431957,7.618e-05,2]
[405985153,1771498240515,-801.85129955,7.618e-05,2]
[405985154,1771498240524,-1259.16,7.633e-05,2]
[405985155,1771498240534,-831.51979763,7.673e-05,2]
[405985156,1771498240543,-862.28603014,7.728e-05,2]
[405985157,1771498240552,-202.72,7.765e-05,2]
[405985158,1771498240561,-894.19061326,7.783e-05,2]
[405985159,1771498240570,-927.27566595,7.838e-05,2]
[405985160,1771498240579,-961.58486559,7.893e-05,2]
[405985161,1771498240589,-153.03,7.9e-05,2]
[405985162,1771498240599,-983.516206,7.945e-05,2]
[405985163,1771498240608,-181.08010149,7.946e-05,2]
[405985164,1771498240617,-181.08010149,7.946e-05,2]
[405985165,1771498240627,-287.61899177,7.946e-05,2]
[405985166,1771498240636,-997.16350561,7.948e-05,2]
[405985167,1771498240646,-587.0,8.105e-05,2]
[405985168,1771498240655,-2351.0,8.105e-05,2]
[405985169,1771498240664,-433.0,8.106e-05,2]
[405985170,1771498240674,-327.407725,8.178e-05,2]
[405985171,1771498240684,-5624.77,8.187e-05,2]
[405985172,1771498240696,-150.0,8.219e-05,2]
[405985173,1771498240706,-150.0,8.219e-05,2]
[405985174,1771498240715,-500.0,8.219e-05,2]
[405985175,1771498240724,-150.0,8.219e-05,2]
[405985176,1771498240734,-150.0,8.219e-05,2]
[405985177,1771498240744,-277.271877,8.219e-05,2]
[405985178,1771498240753,-500.0,8.219e-05,2]
[405985179,1771498240763,-7238.82,8.219e-05,2]
[405985180,1771498240772,-16770.24,8.219e-05,2]
[405985181,1771498240782,-1000.0,8.219e-05,2]
[405985182,1771498240791,-150.0,8.274e-05,2]
[405985183,1771498240801,-150.0,8.274e-05,2]
[405985184,1771498240810,-500.0,8.274e-05,2]
[405985185,1771498240820,-166.0,8.329e-05,2]
[405985186,1771498240830,-150.0,8.329e-05,2]
[405985187,1771498240839,-500.0,8.329e-05,2]
[405985188,1771498240848,-253.47,8.383e-05,2]
[405985189,1771498240857,-1259.16,8.396e-05,2]
[405985190,1771498240868,-7583.4884832,8.422e-05,2]
[405985191,1771498240877,-5046.78,8.477e-05,2]
[405985192,1771498240887,-500.0,8.493e-05,2]
[405985193,1771498240896,-187.78006525,8.494e-05,2]
[405985194,1771498240906,-267.09458927,8.494e-05,2]
[405985195,1771498240915,-500.0,8.643e-05,2]
[405985196,1771498240924,-226.16536172,8.643e-05,2]
[405985197,1771498240937,-500.0,8.643e-05,2]
[405985198,1771498240948,-500.0,8.643e-05,2]
[405985199,1771498240958,-1000.2,8.676e-05,2]
[405985200,1771498240967,-295.41,8.7e-05,2]
[405985201,1771498240976,-500.0,8.767e-05,2]
[405985202,1771498240984,-175.94,8.872e-05,2]
[405985203,1771498240994,-383.0,8.915e-05,2]
[405985204,1771498241002,-3292.0,8.915e-05,2]
[405985205,1771498241010,-736.0,8.916e-05,2]
[405985206,1771498241019,-194.72792766,9.042e-05,2]
[405985207,1771498241028,-151.0,9.15e-05,3]
[405985208,1771498241036,-1259.16,9.16e-05,2]
[405985209,1771498241045,-1000.0,9.191e-05,2]
[405985210,1771498241054,-1000.0,9.191e-05,2]
[405985211,1771498241063,-1000.0,9.191e-05,2]
[405985212,1771498241072,-7583.4884832,9.233e-05,2]
[405985213,1771498241085,-1000.0,9.247e-05,2]
[405985214,1771498241094,-13099.43824368,9.304e-05,2]
[405985215,1771498241104,-201.93286099,9.59e-05,2]
[405985216,1771498241114,-350.0,9.592e-05,2]
[405985217,1771498241123,-1500.0,9.738e-05,2]
[405985218,1771498241133,-1500.0,9.738e-05,2]
[405985219,1771498241142,-1500.0,9.738e-05,2]
[405985220,1771498241152,-4609.0,9.807e-05,2]
[405985221,1771498241161,-151.0,9.997e-05,2]
[405985222,1771498241170,-5000.0,0.0001,2]
[405985223,1771498241180,-151.0,0.0001,2]
[405985224,1771498241190,-151.0,0.0001,2]
[405985225,1771498241199,-500.0,0.0001,2]
[405985226,1771498241209,-500.0,0.0001,2]
[405985227,1771498241218,-500.0,0.0001,2]
[405985228,1771498241228,-500.0,0.0001,2]
[405985229,1771498241237,-500.0,0.0001,2]
[405985230,1771498241245,-500.0,0.0001,2]
[405985231,1771498241254,-500.0,0.0001,2]
[405985232,1771498241262,-500.0,0.0001,2]
[405985233,1771498241271,-500.0,0.0001,2]
[405985234,1771498241281,-500.0,0.0001,2]
[405985235,1771498241290,-500.0,0.0001,2]
[405985236,1771498241300,-151.0,0.0001,2]
[405985237,1771498241309,-151.0,0.0001,2]
[405985238,1771498241318,-151.0,0.0001,2]
[405985239,1771498241327,-151.0,0.0001,2]
[405985240,1771498241336,-151.0,0.0001,2]
[405985241,1771498241345,-151.0,0.0001,2]
[405985242,1771498241354,-500.0,0.0001,2]
[405985243,1771498241363,-151.0,0.0001,2]
[405985244,1771498241373,-500.0,0.0001,2]
[405985245,1771498241382,-151.0,0.0001,2]
[405985246,1771498241391,-500.0,0.0001,2]
[405985247,1771498241400,-151.0,0.0001,2]
[405985248,1771498241410,-500.0,0.0001,2]
[405985249,1771498241418,-151.0,0.0001,2]
[405985250,1771498241427,-500.0,0.0001,2]
[405985251,1771498241437,-151.0,0.0001,2]
[405985252,1771498241446,-500.0,0.0001,2]
[405985253,1771498241455,-151.0,0.0001,2]
[405985254,1771498241464,-500.0,0.0001,2]
[405985255,1771498241474,-151.0,0.0001,2]
[405985256,1771498241483,-500.0,0.0001,2]
[405985257,1771498241493,-151.0,0.0001,2]
[405985258,1771498241503,-500.0,0.0001,2]
[405985259,1771498241512,-151.0,0.0001,2]
[405985260,1771498241521,-500.0,0.0001,2]
[405985261,1771498241530,-151.0,0.0001,2]
[405985262,1771498241539,-151.0,0.0001,2]
[405985263,1771498241548,-500.0,0.0001,2]
[405985264,1771498241558,-151.0,0.0001,2]
[405985265,1771498241568,-151.0,0.0001,2]
[405985266,1771498241577,-151.0,0.0001,2]
[405985267,1771498241587,-151.0,0.0001,2]
[405985268,1771498241596,-151.0,0.0001,2]
[405985269,1771498241605,-151.0,0.0001,2]
[405985270,1771498241614,-151.0,0.0001,2]
[405985271,1771498241623,-151.0,0.0001,2]
[405985272,1771498241632,-151.0,0.0001,2]
[405985273,1771498241642,-151.0,0.0001,2]
[405985274,1771498241651,-151.0,0.0001,2]
[405985275,1771498241660,-151.0,0.0001,2]
[405985276,1771498241669,-151.0,0.0001,2]
[405985277,1771498241679,-151.0,0.0001,2]
[405985278,1771498241688,-2000.0,0.0001,2]
[405985279,1771498241697,-2000.0,0.0001,2]
[405985280,1771498241706,-2000.0,0.0001,2]
[405985281,1771498241715,-2000.0,0.0001,2]
[405985282,1771498241725,-2000.0,0.0001,2]
[405985283,1771498241734,-2000.0,0.0001,2]
[405985284,1771498241744,-184.44,0.00010119,2]
[405985285,1771498241752,-599.60298507,0.00010137,2]
[405985286,1771498241762,-747.8093786,0.00010137,2]
[405985287,1771498241771,-209.40437684,0.00010138,2]
[405985288,1771498241780,-1000.0,0.00010274,2]
[405985289,1771498241789,-2000.0,0.00010286,2]
[405985290,1771498241798,-1004.59441236,0.00010286,2]
[405985291,1771498241807,-2000.0,0.00010286,2]
[405985292,1771498241817,-217.15233878,0.00010686,2]
[405985293,1771498241826,-184.44,0.00010714,2]
[405985294,1771498241835,-761.0,0.00010787,2]
[405985295,1771498241844,-2500.0,0.00010834,2]
[405985296,1771498241853,-2500.0,0.00010834,2]
[405985297,1771498241862,-150.0,0.00010959,2]
[405985298,1771498241871,-166.66,0.00010959,2]
[405985299,1771498241880,-150.0,0.00010959,2]
[405985300,1771498241889,-5000.0,0.00011,2]
[405985301,1771498241898,-166.66,0.00011068,2]
[405985302,1771498241907,-160.84999995,0.00011099,2]
[405985303,1771498241916,-150.0,0.00011122,7]
[405985304,1771498241926,-166.66,0.00011178,2]
[405985305,1771498241938,-5774.91,0.00011233,2]
[405985306,1771498241947,-309.81388555,0.00011234,2]
[405985307,1771498241956,-166.66,0.00011288,2]
[405985308,1771498241965,-1000.0,0.00011301,2]
[405985309,1771498241975,-184.44,0.00011309,2]
[405985310,1771498241984,-3000.0,0.00011382,2]
[405985311,1771498241993,-3000.0,0.00011382,2]
[405985312,1771498242002,-166.66,0.00011397,2]
[405985313,1771498242014,-166.66,0.00011507,2]
[405985314,1771498242023,-5040.62916177,0.00011507,2]
[405985331,1771498243271,-703.47,0.00011507,2]
[405985338,1771498245676,-1494.72083823,0.00011507,2]
[405985339,1771498245685,-151.0,0.00011507,2]
[405985340,1771498245695,-151.0,0.00011507,2]
[405985341,1771498245705,-184.44,0.00011905,2]
[405985342,1771498245714,-3500.0,0.0001193,2]
[405985343,1771498245724,-2376.48008989,0.0001193,2]
[405985344,1771498245733,-200.0,0.00012,2]
[405985345,1771498245742,-5000.0,0.00012,2]
[405985346,1771498245752,-9999.99,0.00012087,2]
[405985347,1771498245761,-151.0,0.00012193,3]
[405985348,1771498245771,-1000.0,0.00012329,2]
[405985349,1771498245780,-4000.0,0.00012478,2]
[405985350,1771498245790,-621.78829552,0.00012876,2]
[405985351,1771498245799,-775.47832561,0.00012876,2]
[405985352,1771498245808,-151.0,0.0001289,2]
[405985353,1771498245817,-2319.88051786,0.00012893,2]
[405985354,1771498245829,-7680.10948214,0.00012893,2]
[405985355,1771498245839,-150.99,0.00012893,2]
[405985356,1771498245848,-999.99,0.00012893,2]
[405985357,1771498245857,-299.99,0.00012893,2]
[405985358,1771498245867,-150.99,0.00012893,2]
[405985359,1771498245876,-5299.54,0.00012893,2]
[405985360,1771498245886,-8193.03551786,0.00012893,2]
[405985361,1771498245897,-1806.95448214,0.00012893,2]
[405985362,1771498245907,-5396.52,0.00012893,2]
[405985363,1771498245918,-1847.99,0.00012893,2]
[405985364,1771498245928,-499.99,0.00012893,2]
[405985365,1771498245943,-9999.99,0.00012893,2]
[405985366,1771498245952,-9999.99,0.00012893,2]
[405985367,1771498245961,-4999.99,0.00012893,2]
[405985368,1771498245971,-43573.43984542,0.00012893,2]
[405985369,1771498245984,-3836.6450342,0.00012893,2]
[405985370,1771498245995,-22725.17217,0.00012893,2]
[405985371,1771498246007,-4933.45000005,0.00012893,2]
[405985372,1771498246018,-19366.05,0.00012893,2]
[405985373,1771498246029,-2565.3,0.00012893,2]
[405985374,1771498246040,-1142.0,0.00012893,2]
[405985375,1771498246051,-2595.3,0.00012893,2]
[405985376,1771498246062,-1721.6,0.00012893,2]
[405985377,1771498803765,450.0,8.543e-05,14]
[405985401,1771499431723,-2679.94616829,7.7e-05,2]
[405985402,1771499431867,-220.05383171,7.7e-05,2]
[405985403,1771499431876,-215.0,7.7e-05,2]
[405985404,1771499431885,-235.45424731,7.75e-05,2]
[405985405,1771499431897,-14.54575269,7.75e-05,2]
[405985406,1771499431906,-405.49414426,7.799e-05,2]
[405985411,1771499432101,-794.50585574,7.799e-05,2]
[405985412,1771499432110,-1581.71536614,7.8e-05,2]
[405985424,1771499437701,-4218.28463386,7.8e-05,2]
[405985425,1771499437711,-137493.81669622,7.8e-05,2]
[405985426,1771499437860,-4478.58728033,7.8e-05,2]
[405985427,1771499437871,-500.0,7.8e-05,2]
[405985433,1771499443509,-13776.22430466,7.8e-05,2]
[405985455,1771499445664,-1815.97179547,7.8e-05,2]
[405985456,1771499706339,151.0,7.8e-05,3]
[405985457,1771499727875,150.0,0.0001912,120]
[405985459,1771500010722,151.0,7.8e-05,3]
[405985460,1771500306669,151.0,7.8e-05,3]
[405985462,1771500409270,-151.0,7.347e-05,2]
[405985463,1771500409297,-300.0,7.349e-05,2]
[405985464,1771500409379,-4505.38272675,7.35e-05,2]
[405985465,1771500412043,-10000.01,7.35e-05,2]
[405985803,1771500609296,151.0,7.8e-05,3]
[405985811,1771500631862,-800.0,6.7e-05,2]
[405985812,1771500631872,-994.88176241,6.7e-05,2]
[405985813,1771500631914,-605.11823759,6.7e-05,2]
[405985814,1771500631924,-208.0,6.7e-05,2]
[405985815,1771500631933,-2462.11848571,6.8e-05,2]
[405985816,1771500631969,-2437.88151429,6.8e-05,2]
[405985817,1771500631978,-300.0,6.899e-05,2]
[405985818,1771500631987,-300.0,6.899e-05,2]
[405985819,1771500631996,-1200.0,6.899e-05,2]
[405985820,1771500632005,-300.0,6.899e-05,2]
[405985821,1771500632015,-7400.0,6.9e-05,2]
[405985822,1771500632023,-9800.0,7e-05,2]
[405985823,1771500632032,-500.0,7.323e-05,2]
[405985824,1771500632041,-150.0,7.323e-05,2]
[405985825,1771500632050,-151.0,7.347e-05,2]
[405985826,1771500632059,-150.0,7.349e-05,2]
[405985827,1771500632068,-1919.76873276,7.349e-05,2]
[405985828,1771500632076,-1919.76873276,7.349e-05,2]
[405985830,1771500632086,-1919.76873276,7.349e-05,2]
[405985832,1771500632095,-1919.76873276,7.349e-05,2]
[405985833,1771500632103,-1919.76873276,7.349e-05,2]
[405985834,1771500632112,-1919.76873276,7.349e-05,2]
[405985835,1771500632121,-1919.76873276,7.349e-05,2]
[405985836,1771500632130,-1919.76873276,7.349e-05,2]
[405985837,1771500632139,-1919.76873276,7.349e-05,2]
[405985838,1771500632148,-1919.76873276,7.349e-05,2]
[405985839,1771500632157,-1919.76873276,7.349e-05,2]
[405985840,1771500632166,-1919.76873276,7.349e-05,2]
[405985841,1771500632175,-1919.76873276,7.349e-05,2]
[405985842,1771500632183,-1919.76873276,7.349e-05,2]
[405985843,1771500632192,-1919.76873276,7.349e-05,2]
[405985844,1771500632202,-1919.76873276,7.349e-05,2]
[405985845,1771500632211,-1919.76873276,7.349e-05,2]
[405985846,1771500632219,-1919.76873276,7.349e-05,2]
[405985847,1771500632228,-1919.76873276,7.349e-05,2]
[405985848,1771500632237,-1919.76873276,7.349e-05,2]
[405985849,1771500632246,-1919.76873276,7.349e-05,2]
[405985850,1771500632255,-1919.76873276,7.349e-05,2]
[405985851,1771500632264,-1919.76873276,7.349e-05,2]
[405985852,1771500632273,-1919.76873276,7.349e-05,2]
[405985853,1771500632283,-1919.76873276,7.349e-05,2]
[405985854,1771500632292,-1919.76873276,7.349e-05,2]
[405985855,1771500632301,-1919.76873276,7.349e-05,2]
[405985856,1771500632310,-1919.76873276,7.349e-05,2]
[405985857,1771500632319,-1919.76873276,7.349e-05,2]
[405985858,1771500632328,-1919.76873276,7.349e-05,2]
[405985859,1771500632337,-1919.76873276,7.349e-05,2]
[405985860,1771500632346,-1919.76873276,7.349e-05,2]
[405985861,1771500632355,-1919.76873276,7.349e-05,2]
[405985862,1771500632364,-1919.76873276,7.349e-05,2]
[405985863,1771500632373,-1919.76873276,7.349e-05,2]
[405985864,1771500632382,-1919.76873276,7.349e-05,2]
[405985865,1771500632391,-1919.76873276,7.349e-05,2]
[405985866,1771500632400,-1919.76873276,7.349e-05,2]
[405985867,1771500632409,-1919.76873276,7.349e-05,2]
[405985868,1771500632419,-1919.76873276,7.349e-05,2]
[405985869,1771500632428,-1919.76873276,7.349e-05,2]
[405985870,1771500632438,-1919.76873276,7.349e-05,2]
[405985871,1771500632447,-1919.76873276,7.349e-05,2]
[405985872,1771500632456,-1919.76873276,7.349e-05,2]
[405985873,1771500632465,-1919.76873276,7.349e-05,2]
[405985874,1771500632475,-1919.76873276,7.349e-05,2]
[405985875,1771500632484,-1919.76873276,7.349e-05,2]
[405985876,1771500632494,-1919.76873276,7.349e-05,2]
[405985877,1771500632503,-1919.76873276,7.349e-05,2]
[405985878,1771500632513,-1919.76873276,7.349e-05,2]
[405985879,1771500632521,-1919.76873276,7.349e-05,2]
[405985880,1771500632531,-1919.76873276,7.349e-05,2]
[405985881,1771500632539,-1919.76873276,7.349e-05,2]
[405985882,1771500632548,-1871.77451445,7.349e-05,2]
[405985883,1771500632557,-1871.77451445,7.349e-05,2]
[405985884,1771500632567,-1871.77451445,7.349e-05,2]
[405985885,1771500632576,-1871.77451445,7.349e-05,2]
[405985886,1771500632585,-1871.77451445,7.349e-05,2]
[405985887,1771500632595,-1871.77451445,7.349e-05,2]
[405985888,1771500632604,-1871.77451445,7.349e-05,2]
[405985889,1771500632614,-1871.77451445,7.349e-05,2]
[405985890,1771500632627,-1871.77451445,7.349e-05,2]
[405985891,1771500632637,-1871.77451445,7.349e-05,2]
[405985892,1771500632650,-1871.77451445,7.349e-05,2]
[405985893,1771500632659,-1871.77451445,7.349e-05,2]
[405985894,1771500632669,-1871.77451445,7.349e-05,2]
[405985895,1771500632680,-1871.77451445,7.349e-05,2]
[405985896,1771500632691,-1871.77451445,7.349e-05,2]
[405985897,1771500632700,-1871.77451445,7.349e-05,2]
[405985898,1771500632710,-1871.77451445,7.349e-05,2]
[405985899,1771500632721,-1871.77451445,7.349e-05,2]
[405985900,1771500632730,-1871.77451445,7.349e-05,2]
[405985901,1771500632740,-695395.29294879,7.35e-05,2]
[405985902,1771500632752,-57707.48217468,7.35e-05,2]
[405985903,1771500632764,-104062.63523768,7.35e-05,2]
[405985904,1771500632775,-175349.36050537,7.35e-05,2]
[405985905,1771500632786,-1254.41808677,7.35e-05,2]
[405985906,1771500632797,-885.66,7.35e-05,2]
[405985907,1771500632809,-1571.96416629,7.35e-05,2]
[405985908,1771500637931,-1871.77451445,7.349e-05,2]
[405985909,1771500637939,-373.32152136,7.349e-05,2]
[405985910,1771500637951,-875.29292091,7.349e-05,2]
[405985911,1771500637962,-252.9257169,7.349e-05,2]
[405985912,1771500637973,-348.01441186,7.349e-05,2]
[405985913,1771500637993,-22.21994342,7.349e-05,2]
[405985914,1771500638003,-1871.77451445,7.349e-05,2]
[405985915,1771500638011,-1871.77451445,7.349e-05,2]
[405985916,1771500638025,-1871.77451445,7.349e-05,2]
[405985917,1771500638035,-1871.77451445,7.349e-05,2]
[405985918,1771500638044,-841.67984983,7.349e-05,2]
[405985919,1771500638055,-1030.09466462,7.349e-05,2]
[405985920,1771500638065,-1871.77451445,7.349e-05,2]
[405985921,1771500638074,-1871.77451445,7.349e-05,2]
[405985922,1771500638083,-1871.77451445,7.349e-05,2]
[405985923,1771500638093,-1407.5745664,7.349e-05,2]
[405985924,1771500638103,-339.88265974,7.349e-05,2]
[405985925,1771500638154,-124.31728831,7.349e-05,2]
[405985926,1771500638163,-1871.77451445,7.349e-05,2]
[405985927,1771500638172,-1871.77451445,7.349e-05,2]
[405985928,1771500638181,-1871.77451445,7.349e-05,2]
[405985929,1771500638190,-1871.77451445,7.349e-05,2]
[405985930,1771500638200,-4323.70381037,7.35e-05,2]
[405985931,1771500638211,-6103.65377534,7.35e-05,2]
[405985933,1771500638222,-563.94852852,7.35e-05,2]
[405985964,1771500639995,-679.77855441,7.35e-05,2]
[405985965,1771500640048,-781.06101906,7.35e-05,2]
[405985966,1771500640059,-497.12974831,7.35e-05,2]
[405985967,1771500640070,-519.62646781,7.35e-05,2]
[405985968,1771500640364,-445.40166449,7.35e-05,2]
[405986099,1771500643662,-1853.22023622,7.35e-05,2]
[405986100,1771500643718,-4131.7238808,7.35e-05,2]
[405986101,1771500644654,-2343.68669856,7.35e-05,2]
[405986102,1771500644666,-18014.71179891,7.35e-05,2]
[405986106,1771500645784,-1434.61950838,7.35e-05,2]
[405986107,1771500645839,-300.0,7.35e-05,2]
[405986108,1771500645851,-704.19492257,7.35e-05,2]
[405986109,1771500645862,-4027.07319894,7.35e-05,2]
[405986110,1771500645999,-570.70757661,7.35e-05,2]
[405986111,1771500646010,-547.44,7.35e-05,2]
[405986112,1771500646020,-1180.95304529,7.35e-05,2]
[405986113,1771500646053,-608.21731146,7.35e-05,2]
[405986114,1771500646064,-406.02414376,7.35e-05,2]
[405986115,1771500646075,-9746.19370959,7.35e-05,2]
[405986116,1771500646086,-15682.94204802,7.35e-05,2]
[405986121,1771500877535,-300.0,7.099e-05,2]
[405986122,1771500877565,-4125.37396531,7.1e-05,2]
[405986123,1771500877611,-1149.26206938,7.1e-05,2]
[405986124,1771500880416,-398.27482855,7.1e-05,2]
[405986125,1771500880438,-9203.4603429,7.1e-05,2]
[405986126,1771500906261,151.0,7.1e-05,3]
[405986127,1771501209126,151.0,7.1e-05,3]
[405986128,1771501341174,-162.868,6.86e-05,2]
[405986129,1771501341204,-1701.407,6.86e-05,2]
[405986130,1771501341232,-300.0,6.898e-05,2]
[405986131,1771501341260,-150.0,6.898e-05,2]
[405986132,1771501341287,-300.0,6.898e-05,2]
[405986133,1771501345565,151.0,6.896e-05,2]
[405986134,1771501348817,-156.71,0.00019178,30]
[405986135,1771501348850,-156.71,0.00022167,30]
[405986136,1771501348876,-156.71,0.00025156,30]
[405986137,1771501348901,-1000.0,0.00027397,30]
[405986138,1771501348925,-1000.0,0.00027397,30]
[405986139,1771501348948,-1000.0,0.00027397,30]
[405986140,1771501348971,-444.56062918,0.00027397,30]
[405986141,1771501348997,-156.71,0.00028144,30]
[405986142,1771501349022,-4501.90677008,0.0003,30]
[405986143,1771501349045,-1660.45403644,0.0003,30]
[405986144,1771501349070,-5179.1646137,0.0003013,30]
[405986145,1771501349095,-173.66088786,0.00031,30]
[405986146,1771501349118,-156.71,0.00031133,30]
[405986147,1771501349143,-150.0,0.00032,120]
[405986148,1771501349166,-1701.407,0.00032645,33]
[405986149,1771501349190,-150.0,0.00032877,30]
[405986150,1771501349214,-156.71,0.00034122,30]
[405986151,1771501349238,-11627.35636374,0.00035,30]
[405986152,1771501349260,-7918.91262393,0.000351,30]
[405986153,1771501349283,-300.191806,0.00035173,33]
[405986154,1771501349308,-311.66,0.000369,120]
[405986155,1771501349332,-11126.95133424,0.00037,30]
[405986156,1771501349355,-12152.87499872,0.00037,30]
[405986157,1771501349378,-156.71,0.00037111,30]
[405986158,1771501349401,-500.0,0.00037173,30]
[405986159,1771501349427,-500.0,0.00037228,30]
[405986160,1771501349450,-500.0,0.00037283,30]
[405986161,1771501349473,-500.0,0.00037337,30]
[405986162,1771501349497,-169.87793082,0.00037392,30]
[405986163,1771501349521,-1444.0,0.00037753,120]
[405986164,1771501349547,-211.35811197,0.00038913,120]
[405986165,1771501349570,-420886.27426458,0.0003998,30]
[405986166,1771501349594,-260.12284903,0.00039999,30]
[405986167,1771501349619,-258.29308443,0.00039999,31]
[405986168,1771501349643,-418.59774395,0.00039999,31]
[405986169,1771501349666,-500.0,0.00039999,31]
[405986170,1771501349689,-527.88708327,0.00039999,31]
[405986171,1771501349712,-584.43807791,0.00039999,31]
[405986172,1771501349736,-584.43807791,0.00039999,31]